bitfinex/quotes_SOLUSD_20250908
["timestamp","ask_amount","ask_price","bid_price","bid_amount"]
[1757303250233,39.4,208.09,208.04,0.03]
[1757303250436,0.7,208.08,208.04,9.60149374]
[1757303250634,40.1,208.07,208.04,0.03]
[1757303251048,0.7,208.06,208.04,0.03]
[1757303251233,39.38,208.05,208.04,0.03]
[1757303251424,40.08,208.05,208.04,0.03]
[1757303251757,39.38,208.05,208.04,9.60149374]
[1757303251922,39.38,208.05,208.04,0.03]
[1757303252121,23.86708775,208.1,208.04,9.60149374]
[1757303252322,0.7,208.1,208.06,9.57149374]
[1757303252639,39.4,208.09,208.06,9.57149374]
[1757303252864,40.08,208.08,208.04,0.03]
[1757303253038,39.38,208.07,208.05,9.57149374]
[1757303253242,40.08,208.07,208.04,0.03]
[1757303253427,49.65149374,208.07,208.04,0.03]
[1757303253627,9.57149374,208.06,208.04,0.03]
[1757303253847,39.38,208.05,208.04,0.03]
[1757303254139,49.65149374,208.05,208.04,0.03]
[1757303254343,10.27149374,208.05,208.04,0.03]
[1757303254532,54.45803063,208.05,208.04,0.03]
[1757303255527,15.07803063,208.05,208.04,0.03]
[1757303255727,5.50653689,208.05,208.04,0.03]
[1757303255927,15.07803063,208.05,208.04,0.03]
[1757303256141,54.41803063,208.05,208.04,0.03]
[1757303256727,44.84653689,208.05,208.04,0.03]
[1757303257350,54.41803063,208.05,208.04,0.03]
[1757303257548,28.67362464,208.05,208.04,0.03]
[1757303257851,68.01362464,208.05,208.04,0.03]
[1757303258726,28.67362464,208.05,208.04,0.03]
[1757303258930,28.67362464,208.05,208.01,0.03]
[1757303259132,23.16708775,208.02,208.01,0.03]
[1757303259540,23.87708775,208.02,208.01,0.03]
[1757303259747,28.68431782,208.02,208.01,0.03]
[1757303260143,19.11282408,208.02,208.01,0.03]
[1757303260343,28.68431782,208.02,208.01,0.03]
[1757303260530,58.47282408,208.02,208.01,0.03]
[1757303260730,19.11282408,208.02,208.01,0.03]
[1757303260946,0.71,208.02,208.01,0.03]
[1757303261135,13.59559401,208.03,208.01,0.03]
[1757303261338,0.71,208.02,208.01,0.03]
[1757303261540,40.07,208.02,208.01,0.03]
[1757303261756,5.51723007,208.02,208.01,0.03]
[1757303262842,40.03,208.02,208.01,0.03]
[1757303263032,39.32,208.02,208.01,0.03]
[1757303263434,14.37864068,208.03,208.01,0.03]
[1757303263658,39.32,208.02,208.01,0.03]
[1757303263834,5.51714694,208.03,208.01,0.03]
[1757303264034,4.80635779,208.06,208.01,0.03]
[1757303264248,63.17708775,208.05,208.01,0.03]
[1757303264558,39.3,208.04,208.01,0.03]
[1757303264742,39.3,208.03,208.01,0.03]
[1757303265440,39.3,208.03,208.01,9.60149374]
[1757303265856,5.51663662,208.05,208.01,9.60149374]
[1757303266052,39.26,208.04,208.02,9.57149374]
[1757303266444,4.80661953,208.05,208.01,9.60149374]
[1757303266645,39.95,208.04,208.01,9.60149374]
[1757303267156,0.71,208.04,208.01,9.60149374]
[1757303267457,39.24,208.03,208.01,9.60149374]
[1757303267761,0.71,208.04,208.01,9.60149374]
[1757303267942,39.24,208.02,208.01,9.60149374]
[1757303268144,4.80703544,208.03,208.01,9.60149374]
[1757303268351,39.22,208.02,208.01,0.03]
[1757303268551,39.2,208.02,208.01,0.03]
[1757303268860,5.51703544,208.03,208.01,0.03]
[1757303269042,39.2,208.02,208.01,9.60149374]
[1757303269558,5.51703544,208.03,208.01,9.60149374]
[1757303269754,39.91,208.02,208.01,0.03]
[1757303269962,0.71,208.02,208.01,0.03]
[1757303270155,39.18,208.02,208.01,0.03]
[1757303270356,0.71,208.04,208.01,0.03]
[1757303270558,13.59559401,208.05,208.01,0.03]
[1757303270559,0.71,208.03,208.01,0.03]
[1757303270758,43.96723007,208.02,208.01,0.03]
[1757303270961,4.80723007,208.02,208.01,0.03]
[1757303271460,43.94723007,208.02,208.01,0.03]
[1757303272171,44.65723007,208.02,208.01,0.03]
[1757303272752,4.80723007,208.02,208.01,9.60149374]
[1757303272960,5.51686699,208.04,208.01,9.60149374]
[1757303273263,39.1,208.03,208.02,9.57149374]
[1757303274258,4.80686699,208.04,208.02,9.57149374]
[1757303274455,5.51686699,208.04,208.02,9.57149374]
[1757303274750,44.59704939,208.03,208.01,0.03]
[1757303275056,39.08,208.02,208.01,0.03]
[1757303275255,39.79,208.02,208.01,0.03]
[1757303276165,39.08,208.02,208.01,0.03]
[1757303276852,4.80704939,208.03,208.01,0.03]
[1757303277169,39.06,208.02,208.01,0.03]
[1757303277568,4.80704939,208.03,208.01,0.03]
[1757303277769,39.0,208.02,208.01,0.03]
[1757303278548,5.51704939,208.03,208.01,0.03]
[1757303278963,38.98,208.02,208.01,9.60149374]
[1757303279253,4.80704939,208.03,208.01,0.03]
[1757303279566,38.98,208.02,208.01,9.60149374]
[1757303280154,38.96,208.02,208.01,9.60149374]
[1757303281071,39.67,208.02,208.01,0.03]
[1757303281588,62.83708775,208.02,208.01,0.03]
[1757303282171,53.26559401,208.02,208.01,0.03]
[1757303282379,67.64431782,208.02,208.01,0.03]
[1757303282576,13.59559401,208.02,208.01,0.03]
[1757303282780,4.80723007,208.02,208.01,0.03]
[1757303282971,5.51694491,208.04,208.01,0.03]
[1757303283181,38.92,208.02,208.01,0.03]
[1757303283557,39.63,208.02,208.01,0.03]
[1757303283751,9.57149374,208.05,208.01,0.03]
[1757303283752,0.71,208.05,208.01,9.60149374]
[1757303284170,38.9,208.04,208.01,0.03]
[1757303284375,38.9,208.04,208.01,9.60149374]
[1757303284676,38.9,208.03,208.01,0.03]
[1757303285686,43.70703027,208.03,208.01,0.03]
[1757303285863,0.06,208.02,208.01,0.03]
[1757303286386,38.92,208.02,208.01,0.03]
[1757303286588,0.06,208.02,208.01,9.60149374]
[1757303286761,0.06,208.02,208.01,9.75149374]
[1757303287076,38.92,208.02,208.01,9.75149374]
[1757303287286,38.92,208.02,208.01,0.18]
[1757303287582,38.92,208.02,208.01,0.03]
[1757303287785,0.06,208.02,208.01,0.03]
[1757303287990,38.96,208.02,208.01,9.75149374]
[1757303289692,0.06,208.02,208.01,9.75149374]
[1757303289985,38.92,208.02,208.01,9.75149374]
[1757303290190,38.92,208.02,208.01,9.60149374]
[1757303290417,0.06,208.02,208.01,6.02368346]
[1757303290762,38.9,208.02,208.01,6.17368346]
[1757303291287,38.9,208.02,208.01,6.02368346]
[1757303293364,0.06,208.02,208.01,6.02368346]
[1757303293564,38.88,208.02,208.01,6.02368346]
[1757303294084,0.06,208.02,208.01,6.02368346]
[1757303294291,38.88,208.02,208.01,6.02368346]
[1757303295790,38.88,208.02,208.01,0.03]
[1757303296180,39.57,208.02,208.01,0.03]
[1757303296877,39.51,208.02,208.01,6.02368346]
[1757303297184,38.82,208.02,208.01,6.02368346]
[1757303298195,0.06,208.02,208.01,6.02368346]
[1757303298383,38.8,208.02,208.01,6.02368346]
[1757303299289,38.8,208.02,208.01,0.03]
[1757303299484,39.49,208.02,208.01,0.03]
[1757303300488,13.59559401,208.01,207.99,0.03]
[1757303300694,5.99368346,208.0,207.98,0.03]
[1757303300872,5.99368346,207.99,207.98,0.03]
[1757303301190,9.58519963,207.99,207.98,0.03]
[1757303301396,10.27519963,207.99,207.98,0.03]
[1757303301597,62.69079364,207.99,207.98,0.03]
[1757303302381,67.49871709,207.99,207.98,0.03]
[1757303306999,77.08176023,207.99,207.98,0.03]
[1757303307190,13.59559401,207.98,207.96,0.03]
[1757303307380,13.59559401,207.96,207.84,0.72]
[1757303307575,5.99368346,207.88,207.84,0.72]
[1757303307780,38.74,207.87,207.84,0.72]
[1757303308300,5.99368346,207.86,207.82,0.72]
[1757303308502,5.99368346,207.86,207.83,0.72]
[1757303309085,5.99368346,207.89,207.84,0.72]
[1757303309393,44.73368346,207.88,207.82,6.71368346]
[1757303309587,5.99368346,207.87,207.82,6.71368346]
[1757303309788,5.99368346,207.87,207.82,0.72]
[1757303309983,5.99368346,207.87,207.83,0.72]
[1757303310285,5.99368346,207.87,207.81,5.99368346]
[1757303310485,5.99368346,207.87,207.81,6.71368346]
[1757303310789,5.99368346,207.87,207.81,11.52573061]
[1757303311584,5.99368346,207.87,207.82,5.99368346]
[1757303311791,5.99368346,207.87,207.82,0.72]
[1757303311998,5.99368346,207.87,207.82,6.71368346]
[1757303312510,44.73368346,207.88,207.82,5.5318274]
[1757303312697,38.74,207.87,207.83,0.72]
[1757303313008,38.74,207.86,207.85,5.99368346]
[1757303313210,38.74,207.86,207.85,6.71368346]
[1757303313412,38.74,207.86,207.82,30.81174133]
[1757303313413,38.74,207.86,207.84,5.99368346]
[1757303313598,38.74,207.86,207.83,6.71368346]
[1757303313800,39.43,207.86,207.81,10.80576178]
[1757303314110,38.74,207.85,207.83,5.99368346]
[1757303314297,38.74,207.85,207.83,6.71368346]
[1757303314691,38.74,207.85,207.83,11.52526738]
[1757303315412,38.74,207.84,207.83,5.47158392]
[1757303315604,38.74,207.84,207.83,6.65368346]
[1757303315801,38.74,207.84,207.82,31.99368346]
[1757303315994,38.74,207.84,207.82,32.65368346]
[1757303316198,38.74,207.84,207.82,37.46553088]
[1757303316405,38.74,207.84,207.82,33.87388717]
[1757303316704,38.74,207.84,207.82,31.47184742]
[1757303316902,38.74,207.84,207.83,2.40203975]
[1757303318120,4.80924313,207.94,207.83,3.06203975]
[1757303318308,4.80924313,207.94,207.85,2.40203975]
[1757303318309,2.40203975,207.91,207.85,2.40203975]
[1757303318514,38.74,207.9,207.87,2.40203975]
[1757303318808,38.74,207.89,207.86,7.2129493]
[1757303318987,38.74,207.88,207.86,7.8729493]
[1757303319193,38.74,207.87,207.86,7.8729493]
[1757303319412,3.11203975,207.92,207.86,7.8729493]
[1757303319604,3.11203975,207.92,207.87,2.40203975]
[1757303319804,38.74,207.91,207.87,2.40203975]
[1757303320398,39.45,207.91,207.87,2.40203975]
[1757303320599,39.45,207.91,207.86,7.2129493]
[1757303320804,38.74,207.91,207.86,7.2129493]
[1757303321009,39.45,207.91,207.86,7.2129493]
[1757303321394,38.74,207.91,207.86,7.2129493]
[1757303321597,0.71,207.9,207.86,7.2129493]
[1757303321819,0.71,207.9,207.87,2.40203975]
[1757303322013,39.45,207.89,207.87,2.40203975]
[1757303322423,38.74,207.89,207.87,2.40203975]
[1757303324124,38.74,207.88,207.87,2.40203975]
[1757303324815,38.74,207.88,207.87,7.21273874]
[1757303325314,0.71,207.91,207.87,4.81069899]
[1757303325502,38.74,207.88,207.87,4.81069899]
[1757303325703,0.71,207.9,207.87,2.40203975]
[1757303325910,38.74,207.89,207.87,2.40203975]
[1757303326304,0.71,207.9,207.87,7.21272691]
[1757303326499,38.74,207.88,207.87,7.21272691]
[1757303327124,38.74,207.88,207.87,4.81068716]
[1757303327327,38.74,207.88,207.87,7.21272691]
[1757303327507,0.71,207.9,207.87,7.21272691]
[1757303327706,38.74,207.88,207.87,7.21272691]
[1757303327913,0.71,207.9,207.87,7.21272691]
[1757303328115,38.74,207.89,207.87,7.21272691]
[1757303328324,0.71,207.9,207.87,7.21272691]
[1757303328527,38.74,207.89,207.87,7.21272691]
[1757303328721,38.74,207.89,207.85,4.84116189]
[1757303328921,38.74,207.89,207.87,2.40203975]
[1757303330111,38.74,207.89,207.87,7.21260188]
[1757303330311,38.74,207.88,207.87,4.81056213]
[1757303330512,38.74,207.88,207.87,7.21260188]
[1757303331129,38.74,207.88,207.86,4.81093043]
[1757303331325,38.74,207.88,207.87,2.40203975]
[1757303332418,0.71,207.92,207.87,7.2125626]
[1757303332627,38.74,207.91,207.9,2.40203975]
[1757303333009,0.71,207.95,207.9,29.06203975]
[1757303333210,0.71,207.95,207.91,0.66]
[1757303333411,0.71,207.95,207.94,2.40203975]
[1757303333717,39.45,207.95,207.94,2.40203975]
[1757303334236,39.45,207.95,207.93,2.40203975]
[1757303334542,39.45,207.95,207.94,2.40203975]
[1757303335628,0.71,207.95,207.94,2.40203975]
[1757303335828,39.45,207.95,207.94,2.40203975]
[1757303336034,0.71,207.95,207.94,2.40203975]
[1757303336233,39.45,207.95,207.94,2.40203975]
[1757303336732,39.45,207.95,207.91,4.80977345]
[1757303337032,38.74,207.94,207.91,5.46977345]
[1757303337333,38.74,207.94,207.93,2.40203975]
[1757303338332,38.72,207.94,207.93,2.40203975]
[1757303339538,38.72,207.94,207.93,7.21135057]
[1757303339731,0.77,207.96,207.93,7.21135057]
[1757303339928,0.77,207.96,207.95,2.40203975]
[1757303339929,0.06,207.96,207.95,2.40203975]
[1757303340242,38.78,207.96,207.95,2.40203975]
[1757303340448,0.06,207.96,207.94,4.80885396]
[1757303340635,38.72,207.95,207.94,30.80885396]
[1757303341622,38.72,207.95,207.94,33.21089371]
[1757303342737,0.06,207.96,207.94,33.21089371]
[1757303343044,0.06,207.96,207.95,3.06203975]
[1757303343338,38.78,207.96,207.95,3.06203975]
[1757303344332,0.06,207.96,207.95,7.87088803]
[1757303344542,0.77,208.01,207.98,26.0]
[1757303344543,0.06,208.01,207.98,26.0]
[1757303344726,30.42,208.0,207.98,26.66]
[1757303345125,30.42,208.0,207.99,0.72]
[1757303345437,0.06,208.01,207.99,0.72]
[1757303345619,0.06,208.01,208.0,0.72]
[1757303345814,38.78,208.01,208.0,12.73019875]
[1757303346016,0.06,208.01,208.0,12.73019875]
[1757303346842,0.06,208.01,208.0,17.53789105]
[1757303347050,38.76,208.01,208.0,17.53789105]
[1757303347830,0.06,208.01,208.0,17.53789105]
[1757303348357,0.06,208.01,208.0,31.13348506]
[1757303348528,0.06,208.02,208.01,15.99763376]
[1757303348851,0.06,208.02,208.01,21.52509493]
[1757303350355,38.7,208.04,208.03,30.80699899]
[1757303350537,38.7,208.04,208.03,33.20903874]
[1757303351738,38.7,208.04,208.03,33.92903874]
[1757303352339,38.7,208.04,208.03,35.27053998]
[1757303352751,38.74,208.05,208.03,35.27053998]
[1757303352937,38.74,208.05,208.04,3.74354099]
[1757303353257,0.06,208.05,208.04,4.46354099]
[1757303353453,0.78,208.05,208.01,19.23990142]
[1757303353660,0.06,208.05,208.04,29.74354099]
[1757303354033,0.06,208.05,208.04,3.74354099]
[1757303354234,0.78,208.05,208.04,3.74354099]
[1757303354636,0.78,208.05,208.0,80.1]
[1757303354938,0.72,208.04,208.0,83.84354099]
[1757303355150,0.72,208.03,207.94,4.80887365]
[1757303355344,0.72,208.02,207.98,3.74354099]
[1757303355529,4.86656863,208.03,207.98,3.74354099]
[1757303355730,0.72,208.01,207.98,3.74354099]
[1757303355929,39.4,208.0,207.98,3.74354099]
[1757303356147,0.72,207.99,207.98,3.74354099]
[1757303359042,0.72,207.99,207.95,3.74354099]
[1757303359260,0.72,207.98,207.95,3.74354099]
[1757303359453,0.72,207.97,207.93,3.74354099]
[1757303359650,0.72,207.96,207.93,3.74354099]
[1757303359851,39.4,207.95,207.93,3.74354099]
[1757303360052,0.72,207.94,207.93,3.74354099]
[1757303360950,38.68,207.95,207.93,3.74354099]
[1757303361146,39.4,207.95,207.94,3.74354099]
[1757303361657,38.68,207.95,207.94,3.74354099]
[1757303362558,38.68,207.95,207.94,8.55262053]
[1757303363068,38.68,207.95,207.94,9.27262053]
[1757303363955,38.68,207.95,207.94,5.52907954]
[1757303364257,0.72,207.99,207.94,8.55262053]
[1757303364459,0.72,207.98,207.94,8.55262053]
[1757303364641,38.66,207.97,207.94,9.27262053]
[1757303365048,38.66,207.97,207.94,89.37262053]
[1757303365261,38.66,207.97,207.96,3.74354099]
[1757303365474,39.38,207.97,207.96,3.74354099]
[1757303365850,39.38,207.97,207.95,3.74354099]
[1757303366050,0.72,207.96,207.95,3.74354099]
[1757303366766,0.72,207.96,207.94,80.1]
[1757303366964,0.72,207.95,207.94,80.1]
[1757303368374,0.72,207.95,207.94,83.84354099]
[1757303368566,38.66,207.97,207.94,83.84354099]
[1757303368769,39.38,207.97,207.94,88.65259635]
[1757303368974,0.72,207.97,207.94,88.65259635]
[1757303369269,0.72,207.97,207.96,3.74354099]
[1757303369469,39.38,207.97,207.96,3.74354099]
[1757303370552,39.38,207.97,207.95,8.55226517]
[1757303370752,38.66,207.96,207.95,8.55226517]
[1757303371068,38.66,207.96,207.95,3.74354099]
[1757303371465,39.38,207.96,207.93,3.77354099]
[1757303371670,38.66,207.96,207.93,0.03]
[1757303371872,0.72,207.95,207.93,0.03]
[1757303372356,0.72,207.94,207.93,0.03]
[1757303373352,38.66,207.94,207.93,3.77354099]
[1757303374979,39.38,207.94,207.93,0.03]
[1757303375159,38.66,207.94,207.93,3.77354099]
[1757303376277,38.66,207.94,207.93,8.58285181]
[1757303376456,38.64,207.94,207.93,8.58285181]
[1757303376651,0.7,207.98,207.93,8.58285181]
[1757303376873,0.7,207.98,207.97,3.74354099]
[1757303377173,39.34,207.98,207.97,3.74354099]
[1757303377577,0.06,208.02,207.97,3.74354099]
[1757303377758,39.34,208.01,207.97,3.74354099]
[1757303377958,4.28458283,208.0,207.97,3.74354099]
[1757303378167,3.58458283,208.0,207.97,3.74354099]
[1757303378371,4.28458283,208.0,207.97,3.74354099]
[1757303378573,0.7,208.0,207.97,3.74354099]
[1757303378766,0.7,207.99,207.97,3.74354099]
[1757303379174,38.64,207.98,207.97,3.74354099]
[1757303379771,0.06,208.02,207.97,3.74354099]
[1757303380073,0.76,208.02,207.99,3.74354099]
[1757303380275,38.64,208.01,207.99,3.74354099]
[1757303380668,39.34,208.01,207.99,3.74354099]
[1757303380871,38.64,208.01,208.0,3.74354099]
[1757303381384,39.34,208.01,207.99,3.74354099]
[1757303381577,39.34,208.01,207.98,3.74354099]
[1757303383482,39.34,208.01,207.99,8.55146444]
[1757303383684,39.34,208.01,208.0,3.74354099]
[1757303383875,39.34,208.01,207.99,8.55146444]
[1757303384464,0.7,208.01,207.97,4.80830106]
[1757303384781,38.62,208.0,207.99,3.74354099]
[1757303386176,39.32,208.0,207.99,3.74354099]
[1757303386487,38.62,208.0,207.99,3.74354099]
[1757303387087,39.32,208.0,207.99,3.74354099]
[1757303387283,39.32,208.0,207.98,8.55165934]
[1757303388766,38.62,208.0,207.98,8.55165934]
[1757303389089,0.76,208.02,207.99,3.74354099]
[1757303389387,39.3,208.01,207.99,3.74354099]
[1757303389569,0.7,208.0,207.99,3.74354099]
[1757303389768,38.6,208.01,207.99,3.74354099]
[1757303389985,39.3,208.01,207.99,3.74354099]
[1757303390379,38.6,208.01,207.99,3.74354099]
[1757303390579,0.7,208.0,207.99,3.74354099]
[1757303391810,0.7,208.0,207.98,3.74354099]
[1757303392107,0.7,207.99,207.98,3.74354099]
[1757303392672,39.3,208.01,207.98,3.74354099]
[1757303392893,0.7,208.0,207.98,3.74354099]
[1757303394681,0.7,208.0,207.99,3.74354099]
[1757303395075,0.7,208.0,207.97,4.80827625]
[1757303395280,0.7,208.0,207.99,3.74354099]
[1757303396396,38.6,208.01,207.99,3.74354099]
[1757303396599,39.3,208.01,207.99,3.74354099]
[1757303396983,38.6,208.01,207.99,3.74354099]
[1757303397286,0.7,208.0,207.99,3.74354099]
[1757303397505,38.6,208.01,207.99,3.74354099]
[1757303397802,39.3,208.01,207.99,3.74354099]
[1757303398379,3.59522605,208.0,207.99,3.74354099]
[1757303399397,4.29522605,208.0,207.98,0.03]
[1757303399593,4.29522605,207.99,207.98,0.03]
[1757303401575,4.29522605,207.99,207.98,3.77354099]
[1757303401794,3.59522605,207.99,207.98,3.77354099]
[1757303401974,4.29522605,208.0,207.98,3.77354099]
[1757303402177,3.59522605,207.99,207.98,3.77354099]
[1757303402398,42.17522605,207.99,207.98,3.77354099]
[1757303402698,38.58,207.99,207.98,0.03]
[1757303403031,42.87532974,207.99,207.98,0.03]
[1757303403774,42.15532974,207.99,207.98,3.77354099]
[1757303404497,42.85532974,207.99,207.98,0.03]
[1757303405707,42.15532974,207.99,207.98,0.03]
[1757303406288,3.59532974,207.99,207.98,3.77354099]
[1757303406499,42.15532974,207.99,207.98,3.77354099]
[1757303407006,38.56,207.99,207.98,3.77354099]
[1757303407205,0.69,208.01,207.98,3.77354099]
[1757303407380,42.15745854,208.0,207.99,3.74354099]
[1757303408393,42.84745854,208.0,207.99,3.74354099]
[1757303408602,42.84745854,208.0,207.98,3.77354099]
[1757303408904,3.59745854,207.99,207.98,3.77354099]
[1757303409283,38.56,207.99,207.98,9.26169562]
[1757303409482,3.59745823,207.99,207.98,9.26169562]
[1757303409686,0.06,208.02,207.98,9.26169562]
[1757303409902,38.54,208.01,208.0,26.0]
[1757303410100,38.54,208.01,208.0,29.74354099]
[1757303410303,38.54,208.01,208.0,30.42354099]
[1757303410488,0.06,208.02,208.01,26.0]
[1757303410690,38.6,208.02,208.01,30.42354099]
[1757303411297,38.6,208.02,208.01,35.23100216]
[1757303412500,38.6,208.02,208.01,33.88418968]
[1757303413911,38.6,208.02,208.01,33.20418968]
[1757303414495,0.06,208.02,208.01,33.20418968]
[1757303414701,38.6,208.02,208.01,4.80746117]
[1757303414894,39.29,208.02,208.0,2.39672851]
[1757303415086,4.28485694,208.01,208.0,2.39672851]
[1757303415288,0.69,208.01,208.0,2.39672851]
[1757303415597,38.6,208.02,208.0,2.39672851]
[1757303415801,38.6,208.02,208.01,2.39672851]
[1757303416396,0.06,208.02,208.01,2.39672851]
[1757303416598,38.58,208.02,208.01,2.39672851]
[1757303416798,0.06,208.02,208.01,33.88418968]
[1757303417713,0.06,208.02,208.01,62.74418968]
[1757303419293,0.06,208.02,208.01,76.33978369]
[1757303419294,1e-08,208.02,208.01,76.33978369]
[1757303420692,1e-08,208.02,208.01,59.66746117]
[1757303420897,1e-08,208.02,208.01,33.20418968]
[1757303421289,1e-08,208.02,208.0,80.1]
[1757303421290,0.69000001,208.02,208.0,80.1]
[1757303421492,0.69,208.01,207.98,2.42672851]
[1757303421705,39.19,208.0,207.99,2.39672851]
[1757303421910,42.78336207,208.0,207.99,2.39672851]
[1757303422997,42.78336207,208.0,207.98,33.23488219]
[1757303423296,0.69,207.99,207.98,30.83815368]
[1757303424711,0.69,207.99,207.98,33.23488219]
[1757303426916,1e-08,208.02,207.98,33.23488219]
[1757303427213,42.09384822,208.01,207.98,30.83815368]
[1757303427410,3.59384822,208.0,207.98,30.83815368]
[1757303427713,4.28384822,208.0,207.98,30.83815368]
[1757303428200,4.28384822,208.0,207.99,2.39672851]
[1757303429100,4.28384822,208.0,207.99,7.20465196]
[1757303430797,4.28384822,208.0,207.98,0.03]
[1757303431002,0.69,207.99,207.98,2.42672851]
[1757303431722,3.59384822,208.0,207.98,7.23488314]
[1757303431927,4.28384822,208.0,207.98,4.83815463]
[1757303432113,4.28384822,208.0,207.99,2.39672851]
[1757303432318,39.17,208.0,207.99,2.39672851]
[1757303432518,42.76384822,208.0,207.99,2.39672851]
[1757303432707,42.76317385,208.0,207.99,2.39672851]
[1757303433227,39.17,208.0,207.99,2.39672851]
[1757303433522,39.17,208.0,207.99,2.42672851]
[1757303433920,39.17,208.0,207.99,0.03]
[1757303434227,38.48,208.0,207.99,2.42672851]
[1757303434523,39.17,208.0,207.99,2.42672851]
[1757303434734,39.17,208.0,207.99,0.03]
[1757303434906,42.76304293,208.0,207.99,0.03]
[1757303435105,45.15977144,208.0,207.99,0.03]
[1757303435424,47.08520888,208.0,207.99,0.03]
[1757303436022,51.89290118,208.0,207.99,0.03]
[1757303436223,65.48849519,208.0,207.99,0.03]
[1757303437029,78.66569996,208.0,207.99,0.03]
[1757303437226,75.07540923,208.0,207.99,0.03]
[1757303439426,36.59540923,208.0,207.99,0.03]
[1757303439608,75.05540923,208.0,207.99,0.03]
[1757303440103,75.0483427,208.0,207.99,0.03]
[1757303442215,15.99232252,207.97,207.96,0.03]
[1757303442530,58.03829892,207.97,207.96,0.03]
[1757303442714,63.54668474,207.97,207.96,0.03]
[1757303443410,25.08668474,207.97,207.96,0.03]
[1757303443625,63.54668474,207.97,207.96,0.03]
[1757303444617,67.49626037,207.97,207.96,0.03]
[1757303444929,65.47295668,207.97,207.96,0.03]
[1757303449236,24.61622817,207.97,207.96,0.03]
[1757303449533,65.45295668,207.97,207.96,0.03]
[1757303450945,24.61622817,207.97,207.96,0.03]
[1757303451240,51.84405694,207.97,207.96,0.03]
[1757303452028,13.40405694,207.97,207.96,0.03]
[1757303452316,51.84405694,207.97,207.96,0.03]
[1757303452535,65.43965095,207.97,207.96,0.03]
[1757303453015,13.40405694,207.97,207.96,0.03]
[1757303453215,51.84405694,207.97,207.96,0.03]
[1757303457641,51.82405694,207.97,207.96,0.03]
[1757303460833,46.31567112,207.97,207.96,0.03]
[1757303461151,47.01567112,207.97,207.96,0.03]
[1757303461522,5.49894261,207.97,207.96,0.03]
[1757303461842,38.42,207.97,207.96,0.7]
[1757303463537,40.81672851,207.97,207.96,0.03]
[1757303464247,44.39594663,207.97,207.96,0.03]
[1757303465436,49.20433245,207.97,207.96,0.03]
[1757303465634,49.86433245,207.97,207.96,0.03]
[1757303466139,51.79023341,207.97,207.96,0.03]
[1757303466526,46.32184759,207.97,207.96,0.03]
[1757303467152,46.98184759,207.97,207.96,0.03]
[1757303467853,51.79023341,207.97,207.96,0.03]
[1757303469146,43.90511908,207.97,207.96,0.73]
[1757303469351,46.30184759,207.97,207.96,0.03]
[1757303470541,51.11023341,207.97,207.96,0.03]
[1757303470741,51.77023341,207.97,207.96,0.03]
[1757303471241,51.11023341,207.97,207.96,0.03]
[1757303472042,51.77023341,207.97,207.96,0.03]
[1757303472360,53.12401566,207.97,207.96,0.03]
[1757303474472,66.71960967,207.97,207.96,0.03]
[1757303478444,9.25562984,207.97,207.96,0.03]
[1757303478647,43.86511908,207.97,207.96,0.73]
[1757303478852,47.61562984,207.97,207.96,0.03]
[1757303479264,47.63407472,207.97,207.96,0.03]
[1757303480852,43.88356396,207.97,207.96,0.03]
[1757303481057,47.63407472,207.97,207.96,0.03]
[1757303483167,47.63407472,207.97,207.96,0.03]